Workbook

Sheet CO2 Functions
B1: Physical Properties for Carbon Dioxide
B2: Version 7.0 (WCO2v70IIR.bas) | F2: For Educational Use Only!
B3: Report errors to R. L. Smith; Email: smith@scf.che.tohoku.ac.jp
A4: Hint: Select green box to see how to use function. Be careful for units! First letter of function is dependent variable; other letters are independent variables; 1=CO2.
A5: Example: V_PT1(P,T) is Specific Volume as a function of Pressure (in Pa) and Temperature (in C).
A6: Function units are in kg, m3, C, Pa, J
A7: Fundamental Constants | B7: Function Name | C7: Examples
A8: Tc: critical temperature of CO2 (in C) | B8: CO2_TC() | C8: =CO2_TC() -> 30.9782 | D8: oC
A9: Pc: critical pressure of CO2 (in Pa) | B9: CO2_PC() | C9: =CO2_PC()/1000000 -> 7.3773 | D9: MPa
A10: Vc: critical volume of CO2 (m3/kg) | B10: CO2_VC() | C10: =CO2_VC() -> 0.002138579983 | D10: m3/kg
A11: rc: critical density of CO2 (kg/m3) | B11: CO2_rhoc() | C11: =CO2_rhoc() -> 467.6 | D11: kg/m3
A12: Mw: molecular weight of CO2 (kg/mol) | B12: CO2_MW() | C12: =co2_mw() -> 0.0440098 | D12: kg/mol
A14: Solid | D14: T [oC] | E14: P [Pa] | F14: Calculated Value
A15: Pm: melting pressure (S-L) | B15: PMELT_T1(T) | D15: -55.6 | F15: =PMELT_T1(D15)/1000000 -> 5.018771614 | G15: MPa
A16: Tm: melting temperature (S-L) | B16: TMELT_T1(P) | E16: 5000000 | F16: =TMELT_P1(E16) -> -55.60397721 | G16: oC
A17: Psub: sublimation pressure (S-V) | B17: PSUB_T1(T) | D17: -85 | F17: =PSUB_T1(D17)/1000000 -> 0.05819329617 | G17: MPa
A19: Pressure-Volume (density)-Temperature
A20: Based on: R. Span and W. Wagner, A New Equation of State for Carbon Dioxide Covering the Fluid Region from the Triple-Point Temperature to 1100 K at Pressures up to 800 MPa, J. Phys. Chem. Ref. Data 25(6), 1509-1596 (1996).
C21: r [kg/m3] | D21: T [oC] | E21: P [Pa] | F21: Calculated Value
A22: Saturation Curve: Vapor-liquid Equilibrium
A23: Psat: Vapor pressure (saturation pressure), Pa | B23: PSAT_T1(T) | D23: 25 | F23: =psat_T1(D23)/1000000 -> 6.434315596 | G23: MPa
A24: Tsat: Vapor temperature (saturation temperature), oC | B24: TSAT_P1(P) | E24: 100000 | F24: =tsat_P1(E24) -> -88.04184272 | G24: oC
A25: Hvap: Heat (enthalpy) of vaporization, J/kg | B25: HVAP_T1(T) | D25: 25 | F25: =HVAP_T1(D25)*co2_mw()/1000 -> 5.265704938 | G25: kJ/mol
A26: Svap: Entropy of vaporization, J/(kg K) | B26: SVAP_T1(T) | D26: 25 | F26: =SVAP_T1(D26) -> 401.3027159 | G26: J/(kg K)
A27: Liquid phase (saturated)
A28: r: Density, kg/m3 | B28: RHOL_T1(T) | D28: 25 | F28: =rhol_t1(D28) -> 710.4714964 | G28: kg/m3
A29: H: Enthalpy, H, J/kg | B29: HL_T1(T) | D29: 25 | F29: =hl_t1(D29) -> 274786.959 | G29: J/kg
A30: S: Entropy, S, J/(kg K) | B30: SL_T1(T) | D30: 25 | F30: =sl_t1(D30) -> 1248.480633 | G30: J/(kg K)
A31: Cp: constant pressure heat capacity, J/(kg K) | B31: CPL_T1(T) | D31: 25 | F31: =CPL_T1(D31) -> 6470.109719 | G31: J/(kg K)
A32: Cv: constant volume heat capacity, J/(kg K) | B32: CVL_T1(T) | D32: 25 | F32: =CVL_T1(D32) -> 1070.487186 | G32: J/(kg K)
A33: Gas/vapor phase (saturated)
A34: r: Density, kg/m3 | B34: RHOG_T1(T) | D34: 25 | F34: =rhog_t1(D34) -> 242.7096819 | G34: kg/m3
A35: H: Enthalpy, H, J/kg | B35: HG_T1(T) | D35: 25 | F35: =hg_t1(D35) -> 394435.4223 | G35: J/kg
A36: S: Entropy, S, J/kg K | B36: SG_T1(T) | D36: 25 | F36: =sg_t1(D36) -> 1649.783349 | G36: J/(kg K)
A37: Cp: constant pressure heat capacity, J/(kg K) | B37: CPG_T1(T) | D37: 25 | F37: =CPG_T1(D37) -> 8208.202359 | G37: J/(kg K)
A38: Cv: constant volume heat capacity, J/(kg K) | B38: CVG_T1(T) | D38: 25 | F38: =CVG_T1(D38) -> 1181.744522 | G38: J/(kg K)
A39: Single Phase Region
A40: Note: U, H, S, Cp, Cv can be used
A41: on the saturation boundary
A42: T,P functions | C42: r [kg/m3] | D42: T [oC] | E42: P [Pa] | F42: Calculated Value
A43: V: specific volume, Wagner eqn., m3/kg | B43: V_TP1(T,P) | D43: 40 | E43: 11000000 | F43: =V_TP1(D43,E43) -> 0.001463011581 | G43: m3/kg
A44: r: Density, kg/m3 | B44: RHO_TP1(T,P) | D44: 20 | E44: 10000000 | F44: =rho_tp1(D44,E44) -> 856.3098232 | G44: kg/m3
A45: f: fugacity, Pa | B45: FUG_TP1(T,P) | D45: 40 | E45: 10000000 | F45: =fug_tp1(D45,E45)/1000000 -> 5.8138575 | G45: MPa
A46: U: internal energy | B46: U_TP1(T,P) | D46: 40 | E46: 10000000 | F46: =U_TP1(D46,E46) -> 297128.4094 | G46: J/kg
A47: H: Enthalpy, H, J/kg | B47: H_TP1(T,P) | D47: 40 | E47: 10000000 | F47: =h_tp1(D47,E47) -> 313039.3289 | G47: J/kg
A48: S: Entropy, S, J/kg K | B48: S_TP1(T,P) | D48: 40 | E48: 10000000 | F48: =s_tp1(D48,E48) -> 1356.236635 | G48: J/(kg K)
A49: Cv: constant volume heat capacity, J/(kg K) | B49: CV_TP1(T,P) | D49: 40 | E49: 10000000 | F49: =CV_TP1(D49,E49) -> 1029.144918 | G49: J/(kg K)
A50: Cp: constant pressure heat capacity, J/(kg K) | B50: CP_TP1(T,P) | D50: 40 | E50: 10000000 | F50: =cp_tp1(D50,E50) -> 5657.461545 | G50: J/(kg K)
A51: w: speed of sound, m/s | B51: W_TP1(T,P) | D51: 40 | E51: 10000000 | F51: =W_TP1(D51,E51) -> 269.8904144 | G51: m/s
A52: r,T functions
A53: P: pressure, Wagner eqn., Pa | B53: P_RT1(RHO,T) | C53: 628.61 | D53: 40 | F53: =P_RT1(C53,D53)/1000000 -> 9.999979303 | G53: MPa
A54: f: fugacity, Pa | B54: FUG_RT1(T,RHO) | C54: 628.61 | D54: 40 | F54: =FUG_RT1(C54,D54)/1000000 -> 5.813854265 | G54: MPa
A55: U: internal energy | B55: U_RT1(RHO,T) | C55: 628.61 | D55: 40 | F55: =U_RT1(C55,D55) -> 297128.7142 | G55: J/kg
A56: H: Enthalpy, H, J/kg | B56: H_RT1(RHO,T) | C56: 628.61 | D56: 40 | F56: =H_RT1(C56,D56) -> 313039.6403 | G56: J/kg
A57: S: Entropy, S, J/kg K | B57: S_RT1(RHO,T) | C57: 628.61 | D57: 40 | F57: =S_RT1(C57,D57) -> 1356.237735 | G57: J/(kg K)
A58: Cv: constant volume heat capacity, J/(kg K) | B58: CV_RT1(RHO,T) | C58: 628.61 | D58: 40 | F58: =CV_RT1(C58,D58) -> 1029.146468 | G58: J/(kg K)
A59: Cp: constant pressure heat capacity, J/(kg K) | B59: CP_RT1(RHO,T) | C59: 628.61 | D59: 40 | F59: =CP_RT1(C59,D59) -> 5657.518429 | G59: J/(kg K)
A60: w: speed of sound, m/s | B60: W_RT1(RHOH,T) | C60: 628.61 | D60: 40 | F60: =W_RT1(C60,D60) -> 269.8892419 | G60: m/s
A61: Virial Coefficients
A62: B: Second virial coefficient B, m3/kg | B62: VIRIALB_T1(T) | D62: 25 | F62: =VIRIALB_T1(D62) -> -0.0001230119575 | G62: m3/kg
A63: C: Third virial coefficient C, m6/kg2 | B63: VIRIALC_T1(T) | D63: 25 | F63: =VIRIALC_T1(D63) -> 4.746833479e-09 | G63: m6/kg2
A64: P,V (or rho) functions | C64: P [Pa] | D64: r [kg/m3] | E64: V [m3/kg] | F64: Calculated Value
A65: T:single phase temperature at P > Pc | B65: T_PV1(P,V) | C65: 11000000 | E65: 0.001463011581 | F65: =T_PV1(C65,E65) -> 39.99999811
B66: T_PR1(P,RHO) | C66: 28370000 | D66: 1000 | F66: =T_PR1(C66,D66) -> 14.00545336
A67: T:single phase temperature at P < Pc, liquid phase | B67: T_PVL1(P,V) | C67: 6600000 | E67: 0.001 | F67: =T_PVL1(C67,E67) -> -8.954029197
B68: T_PRL1(P,RHO) | C68: 38000000 | D68: 1000 | F68: =T_PRL1(C68,D68) -> 24.20703222
A69: T:single phase temperature at P < Pc, gas phase | B69: T_PVG1(P,V) | C69: 6600000 | E69: 0.02 | F69: =T_PVG1(C69,E69) -> 425.6122942
B70: T_PRG1(P,RHO) | C70: 380000000 | D70: 900 | F70: =T_PRG1(C70,D70) -> 618.5895701
A72: Functions Useful for Compressors/Pumps/ Expansions through Valves | C72: S J/kg K | E72: H J/kg
A73: T: single phase temperature at P, S | B73: T_PS1(P,S) | C73: 1356.2 | D73: 10000000 | F73: =t_ps1(D73,C73) -> 39.997972 | G73: oC
A74: T: single phase temperature at P, H | B74: T_PH1(P,H) | D74: 10000000 | E74: 313039 | F74: =t_ph1(D74,E74) -> 39.99994186 | G74: oC
C76: r [kg/m3] | D76: T [oC] | E76: P [Pa] | F76: Calculated Value
A77: Joule-Thomson coefficient mu = (dT/dP)h | B77: JT_RT1(RHO,T) | C77: 628.61 | D77: 40 | F77: =JT_RT1(C77,D77)*1000000 -> 1.099219408 | G77: K/MPa
A78: Isothermal throttling coefficient delt = (dh/dP)T | B78: DELT_RT1(RHO,T) | C78: 628.61 | D78: 40 | F78: =DELT_RT1(C78,D78) -> -0.01504706405 | G78: J/kg Pa
A79: Isentropic temperature pressure coefficient bs = (dT/dP)s | B79: BETAS_RT1(RHO,T) | C79: 628.61 | D79: 40 | F79: =BETAS_RT1(C79,D79)*1000000 -> 2.940843362 | G79: K/MPa
A81: Two Phase Region | C81: State | D81: P [Pa] | E81: H [J/kg] | F81: X [-]
A82: Quality X_PH1(P,H) | B82: X_PH1(P,H) | C82: I | D82: 5729194.4 | E82: 255864.6 | F82: =x_ph1(D82,E82) -> 2.920154834e-07 | G82: T | H82: 20 | I82: C
C83: II | D83: 5729195.4 | E83: 350000 | F83: =x_ph1(D83,E83) -> 0.6193256198 | G83: HL | H83: =hl_t1(H82) -> 255864.5562 | I83: J/kg
C84: III | D84: 5729196.4 | E84: 407861.2 | F84: =x_ph1(D84,E84) -> 0.9999999038 | G84: HG | H84: =hg_t1(H82) -> 407861.2456 | I84: J/kg
G85: Psat | H85: =psat_T1(H82) -> 5729194.424 | I85: Pa
D86: P [Pa] | E86: S [J/kg K]
A87: Quality X_PS1(P,H) | B87: X_PS1(P,S) | C87: I | D87: 5729196.4 | E87: 1187.7 | F87: =X_PS1(D87,E87) -> 0 | G87: T | H87: 20 | I87: C
C88: II | D88: 5729196.4 | E88: 1500 | F88: =X_PS1(D88,E88) -> 0.6023103608 | G88: SL | H88: =sl_t1(H87) -> 1187.705199 | I88: J/(kg K)
C89: III | D89: 5729196.4 | E89: 1706.2 | F89: =X_PS1(D89,E89) -> 1 | G89: SG | H89: =sg_t1(H87) -> 1706.200051 | I89: J/(kg K)
G90: Psat | H90: =psat_T1(H87) -> 5729194.424 | I90: Pa
A91: Derivative Properties
A92: T,P functions | C92: r [kg/m3] | D92: T [oC] | E92: P [Pa] | F92: Calculated Value
A93: dP/dT derivative | B93: DPDT_TP1(T, P) | D93: 40 | E93: 10000000 | F93: =DPDT_TP1(D93, E93)/1000000 -> 0.2781842958 | G93: MPa/K
A94: dP/drho derivative = (dP/drho)T | B94: DPDR_TP1(T,P) | D94: 40 | E94: 10000000 | F94: =DPDR_TP1(D94,E94)/1000000 -> 0.01325042608 | G94: MPa/(kg/m3)
A95: drho/dT derivative = (drho/dT)P | B95: DRDT_TP1(T,P) | D95: 40 | E95: 10000000 | F95: =DRDT_TP1(D95,E95) -> -20.99436608 | G95: (kg/m3 K)
A96: Isothermal compressibility = (1/rho)*(drho/dP)T | B96: BETAT_TP1(T,P) | D96: 40 | E96: 10000000 | F96: =BETAT_TP1(D96,E96)*1000000 -> 0.1200570843 | G96: 1/MPa
A97: Volume coefficient of expansion = (1/V)*(dV/dT)P | B97: BETAP_TP1(T,P) | D97: 40 | E97: 10000000 | F97: =BETAP_TP1(D97,E97) -> 0.03339799544 | G97: 1/K
A98: r,T functions
A99: dP/dT derivative | B99: DPDT_RT1(RHO,T) | C99: 628.61 | D99: 40 | F99: =DPDT_RT1(C99,D99)/1000000 -> 0.2781828699 | G99: MPa/K
A100: dP/drho derivative = (dP/drho)T | B100: DPDR_RT1(RHO,T) | C100: 628.61 | D100: 40 | F100: =DPDR_RT1(C100,D100)/1000000 -> 0.01325019768 | G100: MPa/(kg/m3)
A101: drho/dT derivative = (drho/dT)P (derived) | B101: DRDT_RT1(RHO,T) | C101: 628.61 | D101: 40 | F101: =DRDT_RT1(C101,D101) -> -20.99462035 | G101: (kg/m3 K)
A102: Isothermal compressibility = -(1/V)*(dV/dP)T | B102: BETAT_RT1(RHO,T) | C102: 628.61 | D102: 40 | F102: =BETAT_RT1(C102,D102)*1000000 -> 0.120059452 | G102: 1/MPa
A103: Volume coefficient of expansion = -(1/V)*(dV/dT)P | B103: BETAP_RT1(RHO,T) | C103: 628.61 | D103: 40 | F103: =BETAP_RT1(C103,D103) -> 0.03339848293 | G103: 1/K
A104: Transport Properties
A105: Based on correlations in Reid, Prausnitz and Poling (1987)
A106: Liquid phase (saturated) | D106: T [oC] | F106: Calculated Value
A107: Viscosity, Pa s | B107: VMUL_T1(T) | D107: 25 | F107: =vmul_t1(D107) -> 6.060271524e-05 | G107: Pa s
A108: Kinematic viscosity (dense gas), (=mu/rho), m2/s | B108: VNUL_T1(T) | D108: 25 | F108: =vnul_t1(D108) -> 8.529929146e-08 | G108: m2/s
A109: Surface tension, N/m | B109: SIGMA_T1(T) | D109: 25 | F109: =SIGMA_T1(D109) -> 0.0005312636268 | G109: N/m
A110: Thermal conductivity (saturated liquid), W/(m K) | B110: kL_T1(T) | D110: 20 | F110: =kL_T1(D110) -> 0.08733585464 | G110: W/(m K)
A111: Gas/vapor phase (saturated)
A112: Viscosity, Pa s | B112: VMUG_T1(T) | D112: 25 | F112: =vmug_t1(D112) -> 2.23840019e-05 | G112: Pa s
A113: Kinematic viscosity (dense gas), (=mu/rho), m2/s | B113: VNUG_T1(T) | D113: 25 | F113: =vnug_t1(D113) -> 9.222541817e-08 | G113: m2/s
A114: Ideal gas thermal conductivity, W/(m K) | B114: KID_T1(T) | D114: 25 | F114: =KID_T1(D114) -> 0.01688950914 | G114: W/(m K)
A115: Thermal conductivity (saturated vapor), W/(m K) | B115: kG_T1(T) | D115: 20 | F115: =kG_T1(D115) -> 0.02609383985 | G115: W/(m K)
A116: Single Phase (Gas/vapor) Region
A117: T,P functions | C117: r [kg/m3] | D117: T [oC] | E117: P [Pa] | F117: Calculated Value
A118: Viscosity (dense gas), Pa s | B118: VMU_TP1(T,P) | D118: 40 | E118: 10000000 | F118: =VMU_TP1(D118,E118) -> 4.926482141e-05 | G118: Pa s
A119: Kinematic viscosity (dense gas), (=mu/rho), m2/s | B119: VNU_TP1(T,P) | D119: 40 | E119: 10000000 | F119: =vnu_tp1(D119,E119) -> 7.837084837e-08 | G119: m2/s
A120: Thermal conductivity (dense gas), W/(m K) | B120: k_TP1(T,P) | D120: 40 | E120: 10000000 | F120: =k_TP1(D120,E120) -> 0.06841353848 | G120: W/(m K)
A121: r,T functions
A122: Viscosity (dense gas), Pa s | B122: VMU_RT1(RHO,T) | C122: 628.61 | D122: 40 | F122: =vmu_rt1(C122,D122) -> 4.926466384e-05 | G122: Pa s
A123: Kinematic viscosity (dense gas), (=mu/rho), m2/s | B123: VNU_RT1(RHO,T) | C123: 628.61 | D123: 40 | F123: =VNU_RT1(C123,D123) -> 7.837079245e-08 | G123: m2/s
A124: Thermal conductivity (dense gas), W/(m K) | B124: k_RT1(RHO,T) | C124: 628.61 | D124: 40 | F124: =k_RT1(C124,D124) -> 0.06841333921 | G124: W/(m K)
A125: Other
A126: Dielectric function of Moriyoshi et at. (1993). | B126: EPS_RT1(RHO,T) | C126: 628.61 | D126: 40 | F126: =EPS_RT1(C126,D126) -> 1.367511637
B127: EPS_TP1(T,P) | D127: 40 | E127: 10000000 | F127: =EPS_TP1(D127,E127) -> 1.367512667

Sheet Example
B2: Input Field
B3: Calculation Field | D3: Example of using the rho_tp1(TinC,PinPa) function
B4: Solver Field
B5: Vector function | H5: Curve label: | I5: =CONCATENATE(E6," C") -> 40 C
B6: Note Field | D6: T [C] | E6: 40
B7: Optional/Disregard | D7: P [MPa] | E7: rho [kg/m3]
D8: 0.01 | E8: =rho_tp1($E$6,D8*1000000) -> 0.1690999559
D9: 0.02 | E9: =rho_tp1($E$6,D9*1000000) -> 0.3383427987
D10: 0.03 | E10: =rho_tp1($E$6,D10*1000000) -> 0.5077288236
D11: 0.04 | E11: =rho_tp1($E$6,D11*1000000) -> 0.6772583269
D12: 0.05 | E12: =rho_tp1($E$6,D12*1000000) -> 0.8469316059
D13: 0.06 | E13: =rho_tp1($E$6,D13*1000000) -> 1.016748959
D14: 0.07 | E14: =rho_tp1($E$6,D14*1000000) -> 1.186710685
D15: 0.08 | E15: =rho_tp1($E$6,D15*1000000) -> 1.356817084
D16: 0.09 | E16: =rho_tp1($E$6,D16*1000000) -> 1.527068459
D17: 0.1 | E17: =rho_tp1($E$6,D17*1000000) -> 1.69746511
D18: 0.2 | E18: =rho_tp1($E$6,D18*1000000) -> 3.409489058
D19: 0.4 | E19: =rho_tp1($E$6,D19*1000000) -> 6.878459513
D20: 0.6 | E20: =rho_tp1($E$6,D20*1000000) -> 10.40951178
D21: 0.8 | E21: =rho_tp1($E$6,D21*1000000) -> 14.00543114
D22: 1 | E22: =rho_tp1($E$6,D22*1000000) -> 17.66920577
D23: 1.2 | E23: =rho_tp1($E$6,D23*1000000) -> 21.40404699
D24: 1.4 | E24: =rho_tp1($E$6,D24*1000000) -> 25.21341219
D25: 1.6 | E25: =rho_tp1($E$6,D25*1000000) -> 29.10103074
D26: 1.8 | E26: =rho_tp1($E$6,D26*1000000) -> 33.07093346
D27: 2 | E27: =rho_tp1($E$6,D27*1000000) -> 37.12748622
D28: 2.2 | E28: =rho_tp1($E$6,D28*1000000) -> 41.27542846
D29: 2.4 | E29: =rho_tp1($E$6,D29*1000000) -> 45.51991735
D30: 2.6 | E30: =rho_tp1($E$6,D30*1000000) -> 49.86657887
D31: 2.8 | E31: =rho_tp1($E$6,D31*1000000) -> 54.32156699
D32: 3 | E32: =rho_tp1($E$6,D32*1000000) -> 58.89163255
D33: 3.2 | E33: =rho_tp1($E$6,D33*1000000) -> 63.58420399
D34: 3.4 | E34: =rho_tp1($E$6,D34*1000000) -> 68.40748229
D35: 3.6 | E35: =rho_tp1($E$6,D35*1000000) -> 73.37055344
D36: 3.8 | E36: =rho_tp1($E$6,D36*1000000) -> 78.48352236
D37: 4 | E37: =rho_tp1($E$6,D37*1000000) -> 83.75767347
D38: 4.2 | E38: =rho_tp1($E$6,D38*1000000) -> 89.20566466
D39: 4.4 | E39: =rho_tp1($E$6,D39*1000000) -> 94.84176325
D40: 4.6 | E40: =rho_tp1($E$6,D40*1000000) -> 100.6821356
D41: 4.8 | E41: =rho_tp1($E$6,D41*1000000) -> 106.7452058
D42: 5 | E42: =rho_tp1($E$6,D42*1000000) -> 113.0521035
D43: 5.2 | E43: =rho_tp1($E$6,D43*1000000) -> 119.6272308
D44: 5.4 | E44: =rho_tp1($E$6,D44*1000000) -> 126.498986
D45: 5.6 | E45: =rho_tp1($E$6,D45*1000000) -> 133.7007009
D46: 5.8 | E46: =rho_tp1($E$6,D46*1000000) -> 141.271871
D47: 6 | E47: =rho_tp1($E$6,D47*1000000) -> 149.2597964
D48: 6.2 | E48: =rho_tp1($E$6,D48*1000000) -> 157.7218061
D49: 6.4 | E49: =rho_tp1($E$6,D49*1000000) -> 166.7283342
D50: 6.6 | E50: =rho_tp1($E$6,D50*1000000) -> 176.3672642
D51: 6.8 | E51: =rho_tp1($E$6,D51*1000000) -> 186.7502159
D52: 7 | E52: =rho_tp1($E$6,D52*1000000) -> 198.0218968
D53: 7.2 | E53: =rho_tp1($E$6,D53*1000000) -> 210.374451
D54: 7.4 | E54: =rho_tp1($E$6,D54*1000000) -> 224.0702596
D55: 7.6 | E55: =rho_tp1($E$6,D55*1000000) -> 239.4795943
D56: 7.8 | E56: =rho_tp1($E$6,D56*1000000) -> 257.1452731
D57: 8 | E57: =rho_tp1($E$6,D57*1000000) -> 277.8970554
D58: 8.2 | E58: =rho_tp1($E$6,D58*1000000) -> 303.0518548
D59: 8.4 | E59: =rho_tp1($E$6,D59*1000000) -> 334.712564
D60: 8.6 | E60: =rho_tp1($E$6,D60*1000000) -> 375.9448778
D61: 8.8 | E61: =rho_tp1($E$6,D61*1000000) -> 429.1003257
D62: 9 | E62: =rho_tp1($E$6,D62*1000000) -> 485.5014409
D63: 9.2 | E63: =rho_tp1($E$6,D63*1000000) -> 532.0359421
D64: 9.4 | E64: =rho_tp1($E$6,D64*1000000) -> 566.3483261
D65: 9.6 | E65: =rho_tp1($E$6,D65*1000000) -> 591.970043
D66: 9.8 | E66: =rho_tp1($E$6,D66*1000000) -> 612.1059072
D67: 10 | E67: =rho_tp1($E$6,D67*1000000) -> 628.611562
D68: 10.2 | E68: =rho_tp1($E$6,D68*1000000) -> 642.5709983
D69: 10.4 | E69: =rho_tp1($E$6,D69*1000000) -> 654.660508
D70: 10.6 | E70: =rho_tp1($E$6,D70*1000000) -> 665.3256419
D71: 10.8 | E71: =rho_tp1($E$6,D71*1000000) -> 674.8730439
D72: 11 | E72: =rho_tp1($E$6,D72*1000000) -> 683.5215886
D73: 11.2 | E73: =rho_tp1($E$6,D73*1000000) -> 691.4323856
D74: 11.4 | E74: =rho_tp1($E$6,D74*1000000) -> 698.7271611
D75: 11.6 | E75: =rho_tp1($E$6,D75*1000000) -> 705.4999557
D76: 11.8 | E76: =rho_tp1($E$6,D76*1000000) -> 711.8248262
D77: 12 | E77: =rho_tp1($E$6,D77*1000000) -> 717.7610721
D78: 12.2 | E78: =rho_tp1($E$6,D78*1000000) -> 723.356875
D79: 12.4 | E79: =rho_tp1($E$6,D79*1000000) -> 728.6518943
D80: 12.6 | E80: =rho_tp1($E$6,D80*1000000) -> 733.6791543
D81: 12.8 | E81: =rho_tp1($E$6,D81*1000000) -> 738.4664418
D82: 13 | E82: =rho_tp1($E$6,D82*1000000) -> 743.0373583
D83: 13.2 | E83: =rho_tp1($E$6,D83*1000000) -> 747.4121214
D84: 13.4 | E84: =rho_tp1($E$6,D84*1000000) -> 751.6081857
D85: 13.6 | E85: =rho_tp1($E$6,D85*1000000) -> 755.6407275
D86: 13.8 | E86: =rho_tp1($E$6,D86*1000000) -> 759.5230283
D87: 14 | E87: =rho_tp1($E$6,D87*1000000) -> 763.2667807
D88: 14.2 | E88: =rho_tp1($E$6,D88*1000000) -> 766.8823353
D89: 14.4 | E89: =rho_tp1($E$6,D89*1000000) -> 770.3789009
D90: 14.6 | E90: =rho_tp1($E$6,D90*1000000) -> 773.7647087
D91: 14.8 | E91: =rho_tp1($E$6,D91*1000000) -> 777.0471479
D92: 15 | E92: =rho_tp1($E$6,D92*1000000) -> 780.2328786
D93: 15.2 | E93: =rho_tp1($E$6,D93*1000000) -> 783.3279253
D94: 15.4 | E94: =rho_tp1($E$6,D94*1000000) -> 786.3377571
D95: 15.6 | E95: =rho_tp1($E$6,D95*1000000) -> 789.2673545
D96: 15.8 | E96: =rho_tp1($E$6,D96*1000000) -> 792.1212665
D97: 16 | E97: =rho_tp1($E$6,D97*1000000) -> 794.9036598
D98: 16.2 | E98: =rho_tp1($E$6,D98*1000000) -> 797.6183611
D99: 16.4 | E99: =rho_tp1($E$6,D99*1000000) -> 800.2688931
D100: 16.6 | E100: =rho_tp1($E$6,D100*1000000) -> 802.8585066
D101: 16.8 | E101: =rho_tp1($E$6,D101*1000000) -> 805.3902077
D102: 17 | E102: =rho_tp1($E$6,D102*1000000) -> 807.866782
D103: 17.2 | E103: =rho_tp1($E$6,D103*1000000) -> 810.290816
D104: 17.4 | E104: =rho_tp1($E$6,D104*1000000) -> 812.6647156
D105: 17.6 | E105: =rho_tp1($E$6,D105*1000000) -> 814.9907226
D106: 17.8 | E106: =rho_tp1($E$6,D106*1000000) -> 817.2709293
D107: 18 | E107: =rho_tp1($E$6,D107*1000000) -> 819.507292
D108: 18.2 | E108: =rho_tp1($E$6,D108*1000000) -> 821.7016418
D109: 18.4 | E109: =rho_tp1($E$6,D109*1000000) -> 823.855696
D110: 18.6 | E110: =rho_tp1($E$6,D110*1000000) -> 825.9710667
D111: 18.8 | E111: =rho_tp1($E$6,D111*1000000) -> 828.0492694
D112: 19 | E112: =rho_tp1($E$6,D112*1000000) -> 830.0917308
D113: 19.2 | E113: =rho_tp1($E$6,D113*1000000) -> 832.0997954
D114: 19.4 | E114: =rho_tp1($E$6,D114*1000000) -> 834.0747317
D115: 19.6 | E115: =rho_tp1($E$6,D115*1000000) -> 836.0177381
D116: 19.8 | E116: =rho_tp1($E$6,D116*1000000) -> 837.9299475
D117: 20 | E117: =rho_tp1($E$6,D117*1000000) -> 839.8124327
